Cogmind - Beta 16 @@@ ROGUE MODE // 2025.12.19 @ 12:58:25 Player: winnking222 Result: Destroyed by as-08985 with Assembled Rifle Performance ------------- Evolutions (0) 0 Regions Visited (2) 400 Robots Destroyed (33) 165 Value Destroyed (559) 559 Prototype IDs (0) 0 Alien Tech Used (0) 0 Bonus (0) 0 TOTAL SCORE: 1124 Bonus ------- None Cogmind --------- Core Integrity 0/250 Matter 296/300 Energy 100/100 System Corruption 0% Temperature Cool (0) Movement Core (50) Location -10/Mines Parts ------- > --- POWER (1) -------- (None) > --- PROPULSION (2) --- (None) > --- UTILITY (2) ------ (None) > --- WEAPON (2) ------- (None) > --- INVENTORY (5) ---- Ion Engine Light Treads High-capacity Storage Unit Huge Storage Unit Light Assault Rifle Peak State ------------ > --- POWER ------------ Light Ion Engine > --- PROPULSION ------- Wheel Wheel > --- UTILITY ---------- Medium Storage Unit Seismic Detector > --- WEAPON ----------- Light Assault Rifle Light Assault Rifle > --- INVENTORY -------- Ion Engine Light Treads Light Treads High-capacity Storage Unit Huge Storage Unit Huge Storage Unit High-capacity Matter Pod EM Pulse Gun Light Assault Rifle Light Assault Rifle [Rating: 8] Favorites ----------- Power Ion Engine Engine Ion Engine Propulsion Light Treads Treads Light Treads Wheel Wheel Utility Seismic Detector Device Seismic Detector Storage Medium Storage Unit Weapon EM Pulse Gun Energy Gun EM Pulse Gun Ballistic Gun Light Assault Rifle Launcher Grenade Launcher Build | -11 -10 -10 ------- Run | Yrd Mat Min Slots Evolved . | . . . Power . | . . . Propulsion . | . . . Utility . | . . . Weapon . | . . . Parts Attached 17 | 8 9 . Power 2 | 1 1 . Engine 2 | 1 1 . Core . | . . . Reactor . | . . . Propulsion 4 | 2 2 . Treads 2 | 2 . . Leg . | . . . Wheel 2 | . 2 . Hover . | . . . Flight . | . . . Utility 4 | 2 2 . Device 2 | 1 1 . Storage 2 | 1 1 . Processor . | . . . Hackware . | . . . Protection . | . . . Artifact . | . . . Weapon 7 | 3 4 . Energy Gun 3 | 3 . . Energy Cannon . | . . . Ballistic Gun 3 | . 3 . Ballistic Cannon . | . . . Launcher 1 | . 1 . Special Weapon . | . . . Impact Weapon . | . . . Slashing Weapon . | . . . Piercing Weapon . | . . . Special Melee Weapon . | . . . Unidentified Prototypes . | . . . Parts Lost 6 | . 4 2 Power . | . . . Propulsion 2 | . 1 1 Utility 2 | . 1 1 Weapon 2 | . 2 . Highest Loss Streak 2 | . 2 1 To Critical Strikes . | . . . Average Backups 7 | 4 6 10 Power 1 | . 1 1 Propulsion 2 | 2 2 2 Utility 1 | . 1 4 Weapon 1 | . 1 3 Tool/Special . | . . . Unused Backups 11 | . 2 9 Power 1 | . . 1 Propulsion 4 | . 2 2 Utility 4 | . . 4 Weapon 2 | . . 2 Tool/Special . | . . . Average Slot Usage (%) 96 | . 98 81 Engine 13 | . 14 13 Treads 19 | . 22 . Wheel 7 | . 5 25 Device 11 | . 13 2 Storage 13 | . 14 13 Energy Gun 12 | . 14 . Ballistic Gun 11 | . 9 26 Launcher 3 | . 4 . Peak Build Rating 8 | 7 8 8 Average Rating 6 | 5 7 6 On Entrance 5 | . 7 8 Avg Prop Armor Cover (%) . | . . . Naked Turns 4 | . . 4 Heaviest Build 20 | 15 20 16 Greatest Support 40 | 40 40 20 Greatest Overweight (x) 6 | 1 6 1 Average Overweight (x) . | . . . Largest Inventory Capacity 10 | 8 10 10 Average Capacity 9 | 7 9 9 Most Carried 10 | 7 10 10 Average Carried 7 | 5 6 9 Final Capacity 10 | 8 10 5 Final Carried 10 | 7 10 5 Class Distribution -------------------- 100% | Mutant Dominant Class ---------------- Mutant | -10/Materials Mutant | -10/Mines Resources | -11 -10 -10 ----------- Run | Yrd Mat Min Matter Collected 755 | 280 438 37 Remotely . | . . . Salvage Created 800 | 109 666 25 Parts 66 | 11 50 5 Haulers Intercepted 2 | . 2 . Recyclers Shooed 1 | . 1 . Parts Field Recycled . | . . . Retrieved Matter . | . . . Parts Self-Destructed . | . . . Prevented . | . . . Parts Restored . | . . . Kills | -11 -10 -10 ------- Run | Yrd Mat Min Combat Hostiles Destroyed 21 | . 19 2 Guns 14 | . 12 2 AOE 6 | . 6 . Classes Destroyed 8 | 2 6 . Worker 2 | . 2 . Tunneler 3 | 2 1 . Hauler 2 | . 2 . Recycler 1 | 1 . . Operator 1 | . 1 . Watcher 3 | . 3 . Swarmer 12 | . 10 2 Grunt 9 | . 9 . Best Kill Streak 5 | 2 5 2 Combat Bots Only 4 | . 4 2 Max Kills in Single Turn 2 | 1 2 1 Gunslinging . | . . . Exploded 1 | . 1 . Melee . | . . . Uniques/NPCs Destroyed . | . . . Combat | -11 -10 -10 -------- Run | Yrd Mat Min Hostile Shots Fired 105 | . 78 27 Missed 32 | . 27 5 Hits 73 | . 51 22 Projectile 73 | . 51 22 AOE 7 | . . 7 Critical Strikes 1 | . 1 . Damage Taken 989 | . 595 394 Core 264 | . 80 184 Absorbed by Shields . | . . . Core Remaining (%) 100 | 100 . . Volleys Fired 97 | 4 85 8 Largest 2 | 2 2 2 Hottest 80 | 80 80 40 Shots Fired 148 | 8 124 16 Gun 138 | 8 114 16 Cannon . | . . . Launcher 10 | . 10 . Special . | . . . Kinetic 82 | . 66 16 Thermal . | . . . Explosive 10 | . 10 . Electromagnetic 56 | 8 48 . Robot Hit Streak 6 | 4 6 2 Robot Miss Streak 7 | 2 7 4 Penetration Max . | . . . Secondary Targets 1 | . . 1 Max Gunslinging Chain 1 | . . 1 Shots Hit Robots 75 | 4 66 5 Core Hits 53 | 4 45 4 Critical Kills 1 | . 1 . Critical Parts Destroyed . | . . . Critical Strikes 1 | . 1 . Destroy 1 | . 1 . Melee Attacks . | . . . Impact . | . . . Slashing . | . . . Piercing . | . . . Sneak Attacks . | . . . Combat Hostiles . | . . . Follow-up Attacks . | . . . Damage Inflicted 1381 | 51 1288 42 Guns 745 | 51 652 42 Cannons . | . . . Explosions 626 | . 626 . Melee . | . . . Ramming 10 | . 10 . Kinetic 344 | . 302 42 Thermal 72 | . 72 . Explosive 554 | . 554 . Electromagnetic 401 | 51 350 . Impact . | . . . Slashing . | . . . Piercing . | . . . Highest Corruption . | . . . Average Corruption . | . . . Corruption Purged . | . . . Corruption Blocked . | . . . Overload Shots . | . . . Overflow Damage . | . . . Projectiles . | . . . Explosions . | . . . Melee . | . . . Knockbacks . | . . . Impact . | . . . Kinetic . | . . . Secondary . | . . . Self-Inflicted Damage 29 | . 29 . Shots 1 | . 1 . Rammed 2 | . 2 . Targets Rammed 2 | . 2 . Kicked . | . . . Crushed . | . . . Highest Temperature 117 | 54 117 . Average Temperature 35 | 25 36 . Received Heat Transfer 229 | . 189 40 Siege Activations . | . . . Martial Activations . | . . . Shielding Activations . | . . . Robots Disrupted . | . . . Combat Hostiles . | . . . Robots Corrupted 1 | . 1 . Combat Hostiles 1 | . 1 . Parts Fried 1 | . 1 . Impact Corruptions . | . . . Robots Melted . | . . . Combat Hostiles . | . . . Parts Melted . | . . . Heat Transferred 50 | . 50 . Parts Sabotaged . | . . . Parts Stolen . | . . . Parts Stripped . | . . . Power Chain Reactions 1 | . 1 . Alert | -11 -10 -10 ------- Run | Yrd Mat Min Maximum Alert Level 1 | . 1 . Low Security (%) 75 | 100 69 100 Level 1 24 | . 30 . Level 2 . | . . . Level 3 . | . . . Level 4 . | . . . Level 5 . | . . . High Security . | . . . Max Security . | . . . Peak Influence 371 | 10 371 160 Initial 130 | . . 130 Average 112 | 1 121 108 Influence Increases 732 | 15 667 50 Destroy 0b10 Robot/C 420 | . 380 40 Destroy 0b10 Robot/NC 60 | 15 45 . Destroy Leader 90 | . 80 10 Successful Hack 24 | . 24 . Disable Machine 15 | . 15 . Destroy Structure 63 | . 63 . Lose Combat Pursuer 60 | . 60 . Influence Decreases 722 | 15 331 376 Entered New Map 206 | . . 206 Time Decay 396 | 15 291 90 Lost Part 50 | . 30 20 Lost Ally 70 | . 10 60 Squads Dispatched 1 | . 1 . Investigation 1 | . 1 . Extermination . | . . . Reinforcement . | . . . Assault . | . . . Garrison . | . . . Intercept . | . . . Searches Triggered . | . . . Construction Impeded . | . . . Haulers Reinforced . | . . . Active Scanning Responses . | . . . Cargo Convoy Interrupts . | . . . Stealth | -11 -10 -10 --------- Run | Yrd Mat Min Distress Signals 4 | . 4 . Communications Jammed . | . . . Distress Signals . | . . . Times Spotted 40 | . 30 10 Peak Tracking Total 6 | . 4 6 Tactical Retreats 2 | . 2 . Traps | -11 -10 -10 ------- Run | Yrd Mat Min Traps Triggered 3 | . 3 . Indirectly . | . . . Trap Hack Attempts . | . . . Triggered . | . . . Disarmed . | . . . Reprogrammed . | . . . Reused . | . . . Traps Extracted . | . . . Installed . | . . . Triggered . | . . . Machines | -11 -10 -10 ---------- Run | Yrd Mat Min Machines Disabled 1 | . 1 . Max in Single Turn 1 | . 1 . Machines Repaired . | . . . Machines Dismantled . | . . . Machines Sabotaged . | . . . Overloaded Fab Kills . | . . . Hacking | -11 -10 -10 --------- Run | Yrd Mat Min Machines Accessed 8 | . 8 . Terminals 8 | . 8 . Fabricators . | . . . Repair Stations . | . . . Recycling Units . | . . . Scanalyzers . | . . . Garrison Access . | . . . Total Hacks 20 | . 20 . Successful 11 | . 11 . Failed 9 | . 9 . Catastrophic 1 | . 1 . Database Lockouts . | . . . Manual 19 | . 19 . Terminals 20 | . 20 . Fabricators . | . . . Repair Stations . | . . . Recycling Units . | . . . Scanalyzers . | . . . Garrison Access . | . . . Terminal Hacks 3 | . 3 . Part Schematic 2 | . 2 . Hauler Manifests 1 | . 1 . Fabricator Hacks . | . . . Repair Station Hacks . | . . . Recycling Unit Hacks . | . . . Scanalyzer . | . . . Garrison Access Hacks . | . . . Unauthorized Hacks 8 | . 8 . Terminals 8 | . 8 . Assimilate 1 | . 1 . Botnet 2 | . 2 . Skim 5 | . 5 . Fabricators . | . . . Repair Stations . | . . . Recycling Units . | . . . Scanalyzers . | . . . Garrison Access . | . . . Data Cores Recovered 1 | . 1 . Used 1 | . 1 . Hacking Detections 5 | . 5 . Full Trace Events 1 | . 1 . Feedback Events . | . . . Feedback Blocked . | . . . Robot Schematics Acquired . | . . . Robots Built . | . . . Authchips . | . . . Time . | . . . Total Robot Build Rating . | . . . Part Schematics Acquired 2 | . 2 . Parts Built . | . . . Authchips . | . . . Time . | . . . Total Part Build Rating . | . . . Part Studies Acquired . | . . . Parts Repaired . | . . . Time . | . . . Parts Recycled . | . . . Recycled Matter . | . . . Retrieved Matter . | . . . Retrieved Components . | . . . Parts Scanalyzed . | . . . Part Schematics Acquired . | . . . Parts Damaged . | . . . Bothacking | -11 -10 -10 ------------ Run | Yrd Mat Min Used RIF Installer . | . . . Robots Hacked . | . . . Non-combat . | . . . Combat . | . . . Robot Hacks Applied . | . . . Relay Couplers Released . | . . . Fabnet Peak Effective % . | . . . Robots Rewired . | . . . Allies Hacked . | . . . Hacks Repelled . | . . . Allies | -11 -10 -10 -------- Run | Yrd Mat Min Total Allies 4 | . 1 3 Largest Group 3 | . 1 3 Highest-Rated Group 40 | . 10 40 Highest-Rated Ally 16 | . 10 16 Total Orders . | . . . Ally Attacks . | . . . Total Damage . | . . . Kills . | . . . Allies Corrupted . | . . . Allies Melted . | . . . Intel | -11 -10 -10 ------- Run | Yrd Mat Min Active Infowar (turns) 1224 | 57 1143 24 Seismic 1224 | 57 1143 24 Robot Analysis Total . | . . . Derelict Logs Recovered 1 | . . 1 Drone Launches . | . . . Drone Recoveries . | . . . Exploration | -11 -10 -10 ------------- Run | Yrd Mat Min Turns Passed 1472 | 96 1192 184 Spaces Moved 889 | 48 648 193 Core 20 | 12 1 7 Treads 501 | 36 465 . Legs . | . . . Wheels 368 | . 182 186 Hover . | . . . Flight . | . . . Fastest Speed 50 | 50 80 50 Average Speed 125 | 134 137 80 Slowest Speed 350 | 160 350 95 Overloaded Moves . | . . . Propulsion Burnouts . | . . . Robots Hopped . | . . . Potential Cave-ins . | . . . Cave-ins Triggered . | . . . Exploration Rate (%) 48 | 3 96 46 Regions Visited 2 Branch Regions 1 Pre-discovered Areas 3 | . 2 1 Known Exits Taken . | . . . Unknown Exits Taken 2 | 1 1 . Scrap Searched . | . . . Spaces Dug . | . . . Terrain Destroyed 66 | . 66 . Melee . | . . . Projectile . | . . . AOE 66 | . 66 . Terrain Rammed . | . . . Walls Destroyed . | . . . Machines Disabled . | . . . Actions | -11 -10 -10 --------- Run | Yrd Mat Min Total 1113 | 70 835 208 Wait 73 | . 66 7 Move 887 | 47 647 193 Hop . | . . . Pick Up 25 | 10 15 . Fast Attach 4 | 4 . . Attach 10 | 4 6 . Detach 1 | 1 . . Swap 7 | . 7 . Drop 7 | . 7 . Fire 97 | 4 85 8 Melee . | . . . Ram . | . . . Kick . | . . . Crush 2 | . 2 . Escape Stasis . | . . . Rewire . | . . . Trap . | . . . Miscellaneous . | . . . Route ------- -11/Scrapyard -10/Materials (discovered 5 exits: *Mat x3 / [*Min] / *Sub) -10/Mines (discovered 4 exits: *Mat x2 / Exi / *Sub) History --------- Turn | Location | Event 15 | -11/Scrapyard | Discovered new exit (range 15) 97 | -11/Scrapyard | Entered Materials 273 | -10/Materials | Discovered new exit (range 3) 314 | -10/Materials | Build established: Mutant 485 | -10/Materials | Discovered new exit (range 6) 607 | -10/Materials | Discovered new exit (range 3) 903 | -10/Materials | Identified exit to Materials 971 | -10/Materials | Loaded intel: 1 repair station location 997 | -10/Materials | Derelicts attacked the area 1076 | -10/Materials | Identified exit to Subcaves 1114 | -10/Materials | Learned location of 2 exits from Mines 1140 | -10/Materials | Learned location of Storage (-7) 1174 | -10/Materials | Learned location of Subcaves (-10) 1273 | -10/Materials | Learned location of 2 exits from Subcaves 1289 | -10/Materials | Entered Mines 1291 | -10/Mines | Identified exit to Exiles 1293 | -10/Mines | Learned location of Zion (-7) 1294 | -10/Mines | Met a Derelict bent on vengeance 1413 | -10/Mines | Assisted by bots powering up and referring to "LRC-V3" 1435 | -10/Mines | Assembled infested the area 1440 | -10/Mines | Assisted by a Guerilla fighting off Assembled 1446 | -10/Mines | Core integrity fell below 50% 1459 | -10/Mines | Core integrity fell below 20% 1469 | -10/Mines | Released all parts (5) 1473 | -10/Mines | Destroyed by as-08985 with Assembled Rifle Last Messages --------------- 01443_ Wheel destroyed. 01443_ U-05 Engineer destroyed. 01443_ K-01 Serf collects debris. 01444_ HV Slug penetrates D-53 Grenadier. 01444_ D-53 Grenadier suffers critical hit (Destroy). 01445_ J3-V88(h) destroyed. 01446_ The unstable cave ceiling collapses. 01450_ K-01 Serf collects debris. 01451_ T-07 Excavator destroyed. 01452_ The unstable cave ceiling collapses. 01454_ K-01 Serf collects debris. 01459_ The unstable cave ceiling collapses. 01461_ K-01 Serf destroyed. 01462_ The unstable cave ceiling collapses. 01469_ Released Lgt. Ion Engine. 01469_ Released Med. Storage Unit. 01469_ Released Wheel. 01469_ Released Lgt. Assault Rifle. 01469_ as-87507 destroyed. 01470_ The unstable cave ceiling collapses. Map ----- +----------------------------------------------------+ | ??????????????????????????????????? #??????? | | ??????????????????????????????????? #??????? | | ?????????????????????????????????? ???????? | | ????????????????????????????????## ????????? | | ???????????????????????###???### ?????????? | | ??????????????????????## #??# # #?????????? | | ??????????????????????# ?## #?????????? | | ??????????????????????# # ##????????? | | ?????????????????????## # #????????? | | ??????????????????#### #????????? | | ?????????????#%#### ## ##????????? | | ??????????????[ %| ## # ##???????? | | ????????????????## =a! #???????? | | ?????????????????# ! #???????? | | ?????????????????## ### ## #???????? | | ????????????????????# #a a #???????? | | ????????????????????## a %!! ##???????? | | ?????????????????????# % =!!= #????????? | | ????????????????????## * [[*[ #????????? | | ????????????????????# # =%* ##????????? | | ????????????????????## # [ #?????????? | | ?????????????????????### # #?????????? | | ???????????# ##### #### #?????????? | | ?###????????????# ## #?????????? | | ? ?????????????# #### ## #####?????????? | | ? #????????????????????#@## #?????????????? | | # #????????????????????# ##????????????? | | # #????????????????????# #????????????? | | # #??????????????? ???? # % #????????????? | | #?????????????? ????? # < #????????????? | | #?????????????? ????? #k= #????????????? | | #?????????????? #????? #= #????????????? | | #?????????????? #???? # %! #????????????? | | ######??????### ##??? # = ##???????????? | | #??#### ##??# # #???????????? | | ### #?## #??##?# ## #???????????? | | ##?# ### #??#### ## #???????????? | | ???# #??# ## #???????????? | | ???# #### ##??# ##### #???????????? | | ???# #??# ####???# #???# #???????????? | | ???# #??# ##??????# ##### ##??????????? | | ??? ??## ##????#### ##?????????? | | ??# ???### #?????# #?????????? | | ??# ?????# #?????# #?????????? | | ??> #????# #?????# #?????????? | | ??#####?????# #?????##### ##????????? | | ????????????# ########### #????????? | | ????????????# #????????? | | ????????????################## # #??????? | | ?????????????????????????????## #???>??? | +----------------------------------------------------+ Best States ------------- Heat Dissipation 25 Energy Generation 10 Energy Capacity 250 Matter Stores 300 Matter Capacity 300 Sight Range 16 Terrain Scan Density 10 Evasion (%) 50 Recoil Reduction 2 Item Schematics ----------------- Hcp. Storage Unit | -10/Materials | Hacked Huge Storage Unit | -10/Materials | Hacked Robot Schematics ------------------ None Fabricated ------------ Nothing Repaired ---------- Nothing Studied --------- None Alien Tech Used ----------------- None Achievements -------------- None Challenges ------------ None Game ------ Seed MissileSuperdenseRefractor Manual? 0 Play Time 00:12:44 Cumulative 209.5 hours Start 2025.12.19 @ 12:47:23 End 2025.12.19 @ 12:58:25 Sessions 1 Manual Loads 0 Difficulty Rogue Special Mode None Game No. 291 Rogue 291 Adventurer 0 Explorer 0 Win Type - Total 3 Types 2/0/0/1/0/0/0/0/0/0 Lore% 73 Gallery% 73 Achievement% 47 Wizard Run 0 Options --------- Layout 0 ASCII 0 Keyboard 0 Movement Mouse Keybinds 0 Fullscreen 1 Font 16/SmallcapsGlow Map View 75x55 Zoom Use 0% Tactical HUD 1 Map Filters NONE Filters NONE Steam 1 RUN: 64a2dc26-a599-4429-9dcf-0dd24a733a99